[Event "RUS-chT Premier 2019"]
[Site "Sochi"]
[Date "2019.05.07"]
[Round "6.2"]
[White "Lysyj, Igor"]
[Black "Usmanov, Vasily"]
[Result "1/2-1/2"]
[ECO "E10"]
[WhiteElo "2642"]
[BlackElo "2437"]
[Annotator "ChessBase"]
[PlyCount "119"]
[EventDate "2019.05.01"]
[EventType "team-tourn"]
[EventCountry "RUS"]
[SourceTitle "playchess.com"]
[Source "ChessBase"]
[SourceQuality "1"]
[TimeControl "40/5400+30:1800+30"]

1. d4 {[%emt 0:00:00]} Nf6 {[%emt 0:00:00]} 2. c4 {[%emt 0:00:00]} e6 {[%emt 0:00:00]} 3. Nf3 {[%emt 0:00:00]} a6 {[%emt 0:00:00]} 4. e3 {[%emt 0:00:19]} d5 {[%emt 0:00:00]} 5. a3 {[%emt 0:00:08]} c5 {[%emt 0:00:30]} 6. cxd5 {[%emt 0:00:20]} exd5 {[%emt 0:00:14]} 7. dxc5 {[%emt 0:00:14]} Bxc5 {[%emt 0:00:21]} 8. Be2 {[%emt 0:00:14]} Nc6 {[%emt 0:01:28]} 9. b4 {[%emt 0:01:31]} Ba7 {[%emt 0:02:17]} 10. Bb2 {[%emt 0:00:08]} O-O {[%emt 0:00:13]} 11. O-O {[%emt 0:00:04]} Re8 {[%emt 0:09:12]} 12. b5 {[%emt 0:00:08]} axb5 {[%emt 0:01:07]} 13. Bxb5 {[%emt 0:00:05]} Bg4 {[%emt 0:04:23]} 14. Nbd2 {[%emt 0:05:12]} Ne4 {[%emt 0:12:08]} 15. Nxe4 {[%emt 0:02:39]} dxe4 {[%emt 0:08:13]} 16. Qxd8 {[%emt 0:00:45]} Rexd8 {[%emt 0:00:05]} 17. Bxc6 {[%emt 0:01:05]} bxc6 {[%emt 0:00:05]} 18. Ne5 {[%emt 0:00:05]} Bd7 {[%emt 0:02:27]} 19. Rfc1 {[%emt 0:07:29]} c5 {[%emt 0:01:12]} 20. Nxd7 {[%emt 0:00:16]} Rxd7 {[%emt 0:00:05]} 21. g4 {[%emt 0:07:14]} h5 {[%emt 0:06:22]} 22. gxh5 {[%emt 0:12:15]} Rd5 {[%emt 0:02:43]} 23. Rc4 {[%emt 0:00:23]} Rb8 {[%emt 0:01:34]} 24. Bc3 {[%emt 0:02:00]} Rb3 {[%emt 0:02:27]} 25. h6 {[%emt 0:16:16]} gxh6 {[%emt 0:00:11]} 26. Bf6 {[%emt 0:00:13]} Rb6 {[%emt 0:04:34]} 27. Bh4 {[%emt 0:01:38]} f5 {[%emt 0:03:01]} 28. Ra4 {[%emt 0:04:51]} Rd7 {[%emt 0:00:15]} 29. Rc1 {[%emt 0:02:44]} Kf7 {[%emt 0:01:21]} 30. Kg2 {[%emt 0:00:52]} Rb2 {[%emt 0:07:22]} 31. Ra6 {[%emt 0:05:35]} Bb6 {[%emt 0:00:27]} 32. Bg3 {[%emt 0:07:09]} Rb3 {[%emt 0:07:16]} 33. a4 {[%emt 0:06:37]} Ra7 {[%emt 0:00:05]} 34. Rxa7+ {[%emt 0:00:42]} Bxa7 {[%emt 0:00:04]} 35. Bd6 {[%emt 0:00:03]} Ra3 {[%emt 0:01:48]} 36. Rc4 {[%emt 0:05:30]} Kg6 {[%emt 0:05:47]} 37. Kg3 {[%emt 0:06:27]} Bb6 {[%emt 0:02:19]} 38. h3 {[%emt 0:02:27]} Ra2 {[%emt 0:03:07]} 39. h4 {[%emt 0:01:31]} Kh5 {[%emt 0:02:35]} 40. f3 {[%emt 0:00:00]} Rd2 {[%emt 0:00:00]} 41. Bf4 {[%emt 0:06:01]} exf3 {[%emt 0:17:09]} 42. Kxf3 {[%emt 0:00:04]} Ra2 {[%emt 0:02:14]} 43. Rc1 {[%emt 0:07:57]} Kg6 {[%emt 0:05:00]} 44. h5+ {[%emt 0:08:05]} Kf7 {[%emt 0:00:09]} 45. Bxh6 {[%emt 0:03:02]} Rh2 {[%emt 0:00:23]} 46. Bf4 {[%emt 0:00:31]} Rxh5 {[%emt 0:00:54]} 47. Rd1 {[%emt 0:01:04]} Ke7 {[%emt 0:02:32]} 48. Ke2 {[%emt 0:01:26]} Rh8 {[%emt 0:00:57]} 49. Rb1 {[%emt 0:00:06]} Ba5 {[%emt 0:00:15]} 50. Kd3 {[%emt 0:00:01]} Kd7 {[%emt 0:03:09]} 51. Kc4 {[%emt 0:00:41]} Kc6 {[%emt 0:01:48]} 52. Rg1 {[%emt 0:02:15]} Re8 {[%emt 0:00:29]} 53. Rg6+ {[%emt 0:00:07]} Kb7 {[%emt 0:00:05]} 54. Rd6 {[%emt 0:06:30]} Bb6 {[%emt 0:00:15]} 55. Kb5 {[%emt 0:00:22]} Ba7 {[%emt 0:00:05]} 56. Rd3 {[%emt 0:02:44]} Bb8 {[%emt 0:05:22]} 57. Rd5 {[%emt 0:00:07]} c4 {[%emt 0:00:54]} 58. Rc5 {[%emt 0:01:25]} Ba7 {[%emt 0:01:05]} 59. Rc7+ {[%emt 0:00:13]} Ka8 {[%emt 0:00:02]} 60. Rxc4 {[%emt 0:00:23]} 1/2-1/2

[Event "RUS-chT Premier 2019"]
[Site "Sochi"]
[Date "2019.05.07"]
[Round "6.3"]
[White "Pershin, Denis"]
[Black "Sarana, Alexey"]
[Result "0-1"]
[ECO "D35"]
[WhiteElo "2409"]
[BlackElo "2636"]
[Annotator "ChessBase"]
[PlyCount "86"]
[EventDate "2019.05.01"]
[EventType "team-tourn"]
[EventCountry "RUS"]
[SourceTitle "playchess.com"]
[Source "ChessBase"]
[SourceQuality "1"]
[TimeControl "40/5400+30:1800+30"]

1. d4 {[%emt 0:00:00]} Nf6 {[%emt 0:00:00]} 2. c4 {[%emt 0:00:00]} e6 {[%emt 0:00:00]} 3. Nc3 {[%emt 0:00:00]} d5 {[%emt 0:00:43]} 4. cxd5 {[%emt 0:00:24]} Nxd5 {[%emt 0:00:07]} 5. e4 {[%emt 0:00:09]} Nxc3 {[%emt 0:00:04]} 6. bxc3 {[%emt 0:00:05]} c5 {[%emt 0:00:05]} 7. Nf3 {[%emt 0:00:09]} cxd4 {[%emt 0:00:05]} 8. cxd4 {[%emt 0:00:05]} Bb4+ {[%emt 0:00:05]} 9. Bd2 {[%emt 0:00:04]} Bxd2+ {[%emt 0:00:06]} 10. Qxd2 {[%emt 0:00:05]} O-O {[%emt 0:00:08]} 11. Bc4 {[%emt 0:00:13]} Nd7 {[%emt 0:00:11]} 12. O-O {[%emt 0:00:17]} b6 {[%emt 0:00:04]} 13. Rad1 {[%emt 0:01:24]} Bb7 {[%emt 0:00:11]} 14. Rfe1 {[%emt 0:00:06]} Rc8 {[%emt 0:00:11]} 15. Bb3 {[%emt 0:01:05]} Re8 {[%emt 0:00:16]} 16. h3 {[%emt 0:01:16]} h6 {[%emt 0:00:08]} 17. Qf4 {[%emt 0:06:31]} Qf6 {[%emt 0:00:55]} 18. Qg4 {[%emt 0:08:24]} Qe7 {[%emt 0:15:06]} 19. Qf4 {[%emt 0:12:04]} Qb4 {[%emt 0:06:49]} 20. Re3 {[%emt 0:05:40]} b5 {[%emt 0:14:23]} 21. Ne5 {[%emt 0:03:57]} Nxe5 {[%emt 0:06:11]} 22. dxe5 {[%emt 0:02:30]} Rc7 {[%emt 0:13:00]} 23. Rg3 {[%emt 0:00:25]} Kh7 {[%emt 0:00:35]} 24. Rg4 {[%emt 0:05:36]} a5 {[%emt 0:04:00]} 25. Rd3 {[%emt 0:00:37]} a4 {[%emt 0:05:14]} 26. Bd1 {[%emt 0:01:23]} Rg8 {[%emt 0:02:11]} 27. Kh2 {[%emt 0:02:05]} Qc4 {[%emt 0:01:22]} 28. Rdg3 {[%emt 0:00:54]} Qc1 {[%emt 0:00:42]} 29. Qf3 {[%emt 0:01:32]} Qa1 {[%emt 0:02:16]} 30. h4 {[%emt 0:05:16]} Qxe5 {[%emt 0:02:10]} 31. Rg5 {[%emt 0:03:02]} f5 {[%emt 0:03:25]} 32. Qh5 {[%emt 0:06:01]} Bxe4 {[%emt 0:00:46]} 33. Qg6+ {[%emt 0:01:19]} Kh8 {[%emt 0:00:01]} 34. Rh5 {[%emt 0:01:41]} Qf4 {[%emt 0:06:04]} 35. Qxe6 {[%emt 0:02:04]} Rc6 {[%emt 0:01:07]} 36. Qf7 {[%emt 0:01:43]} Rf6 {[%emt 0:00:52]} 37. Qa7 {[%emt 0:02:41]} Qb8 {[%emt 0:00:42]} 38. Qc5 {[%emt 0:03:07]} Qd6 {[%emt 0:00:31]} 39. Qc1 {[%emt 0:00:35]} Rd8 {[%emt 0:00:16]} 40. Be2 {[%emt 0:00:00]} b4 {[%emt 0:00:00]} 41. Qg5 {[%emt 0:03:53]} Qc7 {[%emt 0:02:19]} 42. f4 {[%emt 0:19:51]} Rdd6 {[%emt 0:00:28]} 43. Bc4 {[%emt 0:04:45]} Rg6 {[%emt 0:00:19]} 0-1

[Event "RUS-chT Premier 2019"]
[Site "Sochi"]
[Date "2019.05.07"]
[Round "6.4"]
[White "Oparin, Grigoriy"]
[Black "Shubin, Kirill"]
[Result "1/2-1/2"]
[ECO "E18"]
[WhiteElo "2624"]
[BlackElo "2404"]
[Annotator "ChessBase"]
[PlyCount "152"]
[EventDate "2019.05.01"]
[EventType "team-tourn"]
[EventCountry "RUS"]
[SourceTitle "playchess.com"]
[Source "ChessBase"]
[SourceQuality "1"]
[TimeControl "40/5400+30:1800+30"]

1. d4 {[%emt 0:00:00]} e6 {[%emt 0:00:00]} 2. Nf3 {[%emt 0:00:00]} Nf6 {[%emt 0:00:00]} 3. c4 {[%emt 0:00:00]} b6 {[%emt 0:00:00]} 4. g3 {[%emt 0:00:00]} Bb7 {[%emt 0:00:00]} 5. Bg2 {[%emt 0:00:00]} Be7 {[%emt 0:00:00]} 6. O-O {[%emt 0:00:10]} O-O {[%emt 0:00:00]} 7. Nc3 {[%emt 0:00:16]} Ne4 {[%emt 0:00:00]} 8. Bd2 {[%emt 0:00:04]} Bf6 {[%emt 0:00:00]} 9. Be1 {[%emt 0:00:32]} Nxc3 {[%emt 0:00:04]} 10. Bxc3 {[%emt 0:00:06]} Be4 {[%emt 0:00:02]} 11. Qa4 {[%emt 0:00:54]} d5 {[%emt 0:02:51]} 12. Ne5 {[%emt 0:03:22]} Bxg2 {[%emt 0:03:03]} 13. Kxg2 {[%emt 0:00:04]} dxc4 {[%emt 0:05:29]} 14. Qxc4 {[%emt 0:00:16]} Qd5+ {[%emt 0:00:54]} 15. Qxd5 {[%emt 0:00:08]} exd5 {[%emt 0:00:08]} 16. Nd3 {[%emt 0:00:38]} a5 {[%emt 0:05:04]} 17. Rac1 {[%emt 0:04:04]} Na6 {[%emt 0:04:29]} 18. Rc2 {[%emt 0:07:22]} Rfe8 {[%emt 0:11:16]} 19. e3 {[%emt 0:09:03]} Be7 {[%emt 0:06:05]} 20. Nf4 {[%emt 0:01:11]} Rad8 {[%emt 0:02:44]} 21. h4 {[%emt 0:00:51]} h6 {[%emt 0:03:58]} 22. Bd2 {[%emt 0:19:23]} c5 {[%emt 0:07:24]} 23. dxc5 {[%emt 0:01:33]} Bxc5 {[%emt 0:00:06]} 24. Nd3 {[%emt 0:03:10]} a4 {[%emt 0:09:31]} 25. Rb1 {[%emt 0:08:11]} d4 {[%emt 0:01:03]} 26. Nxc5 {[%emt 0:00:24]} Nxc5 {[%emt 0:00:11]} 27. exd4 {[%emt 0:00:35]} Ne6 {[%emt 0:01:30]} 28. Be3 {[%emt 0:03:00]} Rd5 {[%emt 0:06:18]} 29. Rbc1 {[%emt 0:05:57]} f5 {[%emt 0:01:39]} 30. Rc8 {[%emt 0:04:23]} Rxc8 {[%emt 0:00:13]} 31. Rxc8+ {[%emt 0:00:05]} Kf7 {[%emt 0:00:03]} 32. Rb8 {[%emt 0:05:51]} b5 {[%emt 0:00:35]} 33. h5 {[%emt 0:07:13]} Ke7 {[%emt 0:07:23]} 34. Rb7+ {[%emt 0:03:00]} Kd6 {[%emt 0:03:27]} 35. Rb6+ {[%emt 0:00:05]} Ke7 {[%emt 0:00:57]} 36. Kf3 {[%emt 0:02:12]} Kd7 {[%emt 0:01:36]} 37. Ke2 {[%emt 0:02:06]} f4 {[%emt 0:03:29]} 38. gxf4 {[%emt 0:00:09]} Rxh5 {[%emt 0:00:21]} 39. Kf3 {[%emt 0:05:04]} Nc7 {[%emt 0:00:07]} 40. Ke4 {[%emt 0:00:00]} Ne8 {[%emt 0:00:00]} 41. Rb7+ {[%emt 0:03:41]} Kd6 {[%emt 0:02:41]} 42. f5 {[%emt 0:03:42]} Kc6 {[%emt 0:01:07]} 43. Re7 {[%emt 0:00:12]} Nd6+ {[%emt 0:00:09]} 44. Kd3 {[%emt 0:00:05]} Rxf5 {[%emt 0:03:11]} 45. Rxg7 {[%emt 0:00:19]} h5 {[%emt 0:00:34]} 46. b3 {[%emt 0:03:58]} axb3 {[%emt 0:01:51]} 47. axb3 {[%emt 0:00:40]} Kd5 {[%emt 0:02:57]} 48. Re7 {[%emt 0:06:22]} Nc8 {[%emt 0:02:26]} 49. Rc7 {[%emt 0:02:26]} Nd6 {[%emt 0:00:05]} 50. Ke2 {[%emt 0:00:11]} Ke6 {[%emt 0:04:14]} 51. Kf1 {[%emt 0:01:43]} Ne4 {[%emt 0:04:37]} 52. Kg2 {[%emt 0:00:24]} Rf8 {[%emt 0:02:15]} 53. Rh7 {[%emt 0:01:20]} Rf5 {[%emt 0:00:10]} 54. Rb7 {[%emt 0:01:11]} Nd6 {[%emt 0:01:32]} 55. Rc7 {[%emt 0:00:06]} Ne4 {[%emt 0:00:11]} 56. f3 {[%emt 0:03:02]} Nd6 {[%emt 0:00:19]} 57. f4 {[%emt 0:02:09]} Ne4 {[%emt 0:03:55]} 58. Kf3 {[%emt 0:01:36]} Ng5+ {[%emt 0:00:03]} 59. Kg3 {[%emt 0:00:18]} Ne4+ {[%emt 0:00:06]} 60. Kh4 {[%emt 0:00:25]} Nf6 {[%emt 0:02:46]} 61. Rc6+ {[%emt 0:01:00]} Kd7 {[%emt 0:02:00]} 62. Rc5 {[%emt 0:00:13]} Rxc5 {[%emt 0:05:52]} 63. dxc5 {[%emt 0:00:05]} Nd5 {[%emt 0:00:01]} 64. Bd2 {[%emt 0:00:31]} b4 {[%emt 0:00:02]} 65. Kxh5 {[%emt 0:00:45]} Kc6 {[%emt 0:00:04]} 66. f5 {[%emt 0:00:42]} Kxc5 {[%emt 0:00:04]} 67. Kh6 {[%emt 0:10:14]} Kd4 {[%emt 0:00:30]} 68. Bxb4 {[%emt 0:00:07]} Ke5 {[%emt 0:00:10]} 69. Kg6 {[%emt 0:01:07]} Nxb4 {[%emt 0:00:05]} 70. f6 {[%emt 0:00:04]} Nd5 {[%emt 0:00:07]} 71. f7 {[%emt 0:00:07]} Nf4+ {[%emt 0:00:02]} 72. Kg7 {[%emt 0:00:07]} Ne6+ {[%emt 0:00:03]} 73. Kg8 {[%emt 0:00:03]} Kd5 {[%emt 0:00:06]} 74. f8=Q {[%emt 0:00:04]} Nxf8 {[%emt 0:00:06]} 75. Kxf8 {[%emt 0:00:02]} Kc5 {[%emt 0:00:04]} 76. b4+ {[%emt 0:00:02]} Kxb4 {[%emt 0:00:04]} 1/2-1/2

[Event "RUS-chT Premier 2019"]
[Site "Sochi"]
[Date "2019.05.07"]
[Round "6.5"]
[White "Saveliev, Alexei"]
[Black "Predke, Alexandr"]
[Result "0-1"]
[ECO "C97"]
[WhiteElo "2367"]
[BlackElo "2626"]
[Annotator "ChessBase"]
[PlyCount "94"]
[EventDate "2019.05.01"]
[EventType "team-tourn"]
[EventCountry "RUS"]
[SourceTitle "playchess.com"]
[Source "ChessBase"]
[SourceQuality "1"]
[TimeControl "40/5400+30:1800+30"]

1. e4 {[%emt 0:00:00]} e5 {[%emt 0:01:01]} 2. Nf3 {[%emt 0:00:00]} Nc6 {[%emt 0:00:04]} 3. Bb5 {[%emt 0:00:00]} a6 {[%emt 0:00:07]} 4. Ba4 {[%emt 0:00:00]} Nf6 {[%emt 0:00:05]} 5. O-O {[%emt 0:00:00]} Be7 {[%emt 0:00:09]} 6. Re1 {[%emt 0:00:01]} b5 {[%emt 0:00:08]} 7. Bb3 {[%emt 0:00:05]} d6 {[%emt 0:00:04]} 8. c3 {[%emt 0:00:05]} O-O {[%emt 0:00:11]} 9. h3 {[%emt 0:00:06]} Na5 {[%emt 0:00:12]} 10. Bc2 {[%emt 0:00:40]} c5 {[%emt 0:00:06]} 11. d4 {[%emt 0:00:10]} Qc7 {[%emt 0:00:10]} 12. Nbd2 {[%emt 0:02:37]} Bd7 {[%emt 0:00:25]} 13. Nf1 {[%emt 0:07:38]} Nc4 {[%emt 0:00:22]} 14. b3 {[%emt 0:02:39]} Nb6 {[%emt 0:00:06]} 15. Ne3 {[%emt 0:00:38]} c4 {[%emt 0:00:50]} 16. Ba3 {[%emt 0:06:34]} Rfe8 {[%emt 0:00:46]} 17. bxc4 {[%emt 0:14:38]} Nxc4 {[%emt 0:01:18]} 18. Nxc4 {[%emt 0:01:10]} bxc4 {[%emt 0:02:10]} 19. Rb1 {[%emt 0:01:50]} Bf8 {[%emt 0:17:50]} 20. Qe2 {[%emt 0:16:35]} Rab8 {[%emt 0:00:05]} 21. Rxb8 {[%emt 0:00:03]} Rxb8 {[%emt 0:08:17]} 22. Rb1 {[%emt 0:08:33]} Rb5 {[%emt 0:01:05]} 23. Bb4 {[%emt 0:01:49]} exd4 {[%emt 0:00:11]} 24. Nxd4 {[%emt 0:04:58]} Re5 {[%emt 0:16:16]} 25. Rd1 {[%emt 0:01:56]} Re8 {[%emt 0:04:33]} 26. Nf3 {[%emt 0:00:29]} a5 {[%emt 0:00:20]} 27. Ba3 {[%emt 0:02:58]} Bf5 {[%emt 0:02:24]} 28. Rd4 {[%emt 0:02:24]} Qb7 {[%emt 0:10:23]} 29. Nd2 {[%emt 0:08:43]} d5 {[%emt 0:13:06]} 30. Ba4 {[%emt 0:00:30]} Re6 {[%emt 0:00:03]} 31. Bxf8 Kxf8 32. e5 {[%emt 0:09:12]} Qb2 {[%emt 0:12:51]} 33. Qe3 {[%emt 0:03:49]} Qxa2 {[%emt 0:01:04]} 34. Rf4 Qxa4 {[%emt 0:01:18]} 35. Qc5+ {[%emt 0:01:48]} Kg8 {[%emt 0:03:39]} 36. exf6 {[%emt 0:00:49]} Bg6 {[%emt 0:01:24]} 37. Qxd5 {[%emt 0:00:43]} gxf6 38. Rxc4 {[%emt 0:02:57]} Qa3 {[%emt 0:02:34]} 39. Nf3 {[%emt 0:00:00]} Kg7 {[%emt 0:01:42]} 40. h4 {[%emt 0:00:00]} Rd6 {[%emt 0:00:30]} 41. Qb5 {[%emt 0:07:46]} Rd1+ {[%emt 0:03:52]} 42. Kh2 {[%emt 0:00:04]} Qd6+ {[%emt 0:00:13]} 43. g3 {[%emt 0:00:09]} Qd3 {[%emt 0:00:40]} 44. Nd4 {[%emt 0:12:41]} Qe4 {[%emt 0:07:55]} 45. f3 {[%emt 0:01:03]} Qe1 {[%emt 0:00:12]} 46. Kh3 {[%emt 0:01:59]} h5 {[%emt 0:00:13]} 47. Qb2 {[%emt 0:00:28]} Qf1+ {[%emt 0:00:28]} 0-1

[Event "RUS-chT Premier 2019"]
[Site "Sochi"]
[Date "2019.05.07"]
[Round "6.6"]
[White "Khismatullin, Denis"]
[Black "Askerov, Marat"]
[Result "1-0"]
[ECO "E32"]
[WhiteElo "2619"]
[BlackElo "2315"]
[Annotator "ChessBase"]
[PlyCount "77"]
[EventDate "2019.05.01"]
[EventType "team-tourn"]
[EventCountry "RUS"]
[SourceTitle "playchess.com"]
[Source "ChessBase"]
[SourceQuality "1"]
[TimeControl "40/5400+30:1800+30"]

1. d4 {[%emt 0:00:00]} Nf6 {[%emt 0:00:00]} 2. c4 {[%emt 0:00:00]} e6 {[%emt 0:00:00]} 3. Nc3 {[%emt 0:00:00]} Bb4 {[%emt 0:00:00]} 4. Qc2 {[%emt 0:00:00]} O-O {[%emt 0:00:03]} 5. a3 {[%emt 0:00:13]} Bxc3+ {[%emt 0:00:08]} 6. Qxc3 {[%emt 0:00:04]} d5 {[%emt 0:00:21]} 7. Nf3 {[%emt 0:10:09]} dxc4 {[%emt 0:01:20]} 8. Qxc4 {[%emt 0:02:06]} b6 {[%emt 0:00:16]} 9. h4 {[%emt 0:02:31]} Ba6 {[%emt 0:16:53]} 10. Qa4 {[%emt 0:10:16]} Qd7 {[%emt 0:08:48]} 11. Qc2 {[%emt 0:02:56]} c5 {[%emt 0:03:54]} 12. dxc5 {[%emt 0:10:03]} Rc8 {[%emt 0:01:21]} 13. Be3 {[%emt 0:00:50]} bxc5 {[%emt 0:16:24]} 14. Bg5 {[%emt 0:08:16]} Nd5 {[%emt 0:18:43]} 15. Rd1 {[%emt 0:06:43]} Qe8 {[%emt 0:03:41]} 16. e4 {[%emt 0:03:38]} Nb6 {[%emt 0:04:52]} 17. Rh3 {[%emt 0:02:50]} c4 {[%emt 0:12:26]} 18. Rg3 {[%emt 0:02:24]} N8d7 {[%emt 0:02:44]} 19. h5 {[%emt 0:16:31]} e5 {[%emt 0:02:54]} 20. Nh4 {[%emt 0:04:27]} Kh8 {[%emt 0:04:07]} 21. Nf5 {[%emt 0:02:19]} f6 {[%emt 0:00:24]} 22. Be3 {[%emt 0:00:57]} Qxh5 {[%emt 0:00:59]} 23. Nxg7 {[%emt 0:03:41]} Qf7 {[%emt 0:00:04]} 24. Nf5 {[%emt 0:00:05]} Rc6 {[%emt 0:00:59]} 25. Be2 {[%emt 0:01:44]} Bb5 {[%emt 0:00:09]} 26. Rd6 {[%emt 0:01:50]} Ba4 {[%emt 0:00:47]} 27. Qd2 {[%emt 0:00:15]} Rxd6 {[%emt 0:00:27]} 28. Nxd6 {[%emt 0:00:27]} Qe6 {[%emt 0:00:34]} 29. Bg4 {[%emt 0:00:24]} Qe7 {[%emt 0:00:10]} 30. Bh5 {[%emt 0:00:07]} c3 {[%emt 0:00:17]} 31. bxc3 {[%emt 0:00:10]} Bb3 {[%emt 0:00:24]} 32. Bh6 {[%emt 0:04:41]} Rg8 {[%emt 0:00:39]} 33. Nf5 {[%emt 0:00:13]} Qxa3 {[%emt 0:00:28]} 34. Bg7+ {[%emt 0:00:25]} Rxg7 {[%emt 0:00:04]} 35. Rxg7 {[%emt 0:00:07]} Qa1+ {[%emt 0:00:43]} 36. Ke2 {[%emt 0:01:10]} Bc4+ {[%emt 0:01:22]} 37. Kf3 {[%emt 0:00:21]} Be6 {[%emt 0:00:16]} 38. Rxh7+ {[%emt 0:00:10]} Kg8 {[%emt 0:00:14]} 39. Rh8+ {[%emt 0:00:08]} 1-0

[Event "RUS-chT Premier 2019"]
[Site "Sochi"]
[Date "2019.05.07"]
[Round "6.7"]
[White "Vitiugov, Nikita"]
[Black "Sjugirov, Sanan"]
[Result "1/2-1/2"]
[ECO "A29"]
[WhiteElo "2734"]
[BlackElo "2661"]
[Annotator "RC"]
[PlyCount "87"]
[EventDate "2019.05.01"]
[EventType "team-tourn"]
[EventCountry "RUS"]
[SourceTitle "playchess.com"]
[Source "ChessBase"]
[SourceQuality "1"]
[TimeControl "40/5400+30:1800+30"]

1. c4 {[%emt 0:00:00]} Nf6 {[%emt 0:00:17]} 2. Nc3 {[%emt 0:00:17]} e5 {[%emt 0:05:59]} 3. Nf3 {[%emt 0:00:31]} Nc6 {[%emt 0:00:11]} 4. g3 {[%emt 0:00:27]} Nd4 {[%emt 0:01:19]} 5. Bg2 {[%emt 0:00:34]} Nxf3+ {[%emt 0:00:30]} 6. Bxf3 {[%emt 0:00:08]} Bb4 {[%emt 0:00:34]} 7. Qb3 {[%emt 0:02:15]} a5 {[%emt 0:05:23]} 8. O-O {[%emt 0:01:53]} O-O {[%emt 0:00:34]} 9. d3 {[%emt 0:03:38]} Re8 {[%emt 0:20:52]} 10. Bg5 {[%emt 0:12:19]} h6 {[%emt 0:03:49]} 11. Bxf6 {[%emt 0:01:56]} Qxf6 {[%emt 0:00:19]} 12. Nd5 {[%emt 0:02:05]} Qd6 {[%emt 0:00:38]} 13. e3 {[%emt 0:04:35]} c6 {[%emt 0:07:05]} 14. Nb6 {[%emt 0:07:10]} Rb8 {[%emt 0:00:24]} 15. Rad1 {[%emt 0:01:27]} Qc7 {[%emt 0:15:37]} 16. Nxc8 {[%emt 0:00:51]} Rbxc8 {[%emt 0:03:09]} 17. d4 {[%emt 0:00:21]} Bf8 {[%emt 0:06:42]} 18. dxe5 {[%emt 0:01:35]} Rxe5 {[%emt 0:00:22]} 19. Rd3 {[%emt 0:01:38]} Re6 {[%emt 0:05:24]} 20. Rfd1 {[%emt 0:10:11]} Rd6 {[%emt 0:03:01]} 21. Rxd6 {[%emt 0:03:09]} Bxd6 {[%emt 0:00:11]} 22. Qd3 {[%emt 0:03:59]} Be5 {[%emt 0:00:20]} 23. Qxd7 {[%emt 0:00:37]} Bxb2 {[%emt 0:01:18]} 24. c5 {[%emt 0:01:43]} Be5 {[%emt 0:12:14]} 25. Qf5 {[%emt 0:03:44]} g6 {[%emt 0:00:41]} 26. Qh3 {[%emt 0:00:24]} Rd8 {[%emt 0:00:46]} 27. Qxh6 {[%emt 0:00:47]} Bf6 {[%emt 0:03:18]} 28. Be2 {[%emt 0:22:27]} Rxd1+ {[%emt 0:00:59]} 29. Bxd1 {[%emt 0:00:02]} Qd7 {[%emt 0:00:12]} 30. Bc2 {[%emt 0:03:49]} Qg4 {[%emt 0:00:23]} 31. h3 Qc4 {[%emt 0:02:04]} 32. Bb3 {[%emt 0:06:17]} Qe4 {[%emt 0:00:00]} 33. Qf4 {[%emt 0:01:05]} Qxf4 {[%emt 0:00:00]} 34. gxf4 {[%emt 0:00:25]} Be7 {[%emt 0:00:00]} 35. a4 {[%emt 0:01:55]} Bxc5 {[%emt 0:00:00]} 36. Bc4 {[%emt 0:00:19]} Be7 {[%emt 0:00:23]} 37. Kg2 {[%emt 0:00:12]} Bh4 {[%emt 0:00:12]} 38. Kf3 {[%emt 0:00:21]} Kf8 {[%emt 0:00:11]} 39. e4 {[%emt 0:01:05]} Be7 {[%emt 0:00:47]} 40. Kg4 {[%emt 0:00:00]} Bc5 {[%emt 0:00:00]} 41. f3 {[%emt 0:03:01]} f6 {[%emt 0:13:47]} 42. f5 {[%emt 0:04:40]} g5 {[%emt 0:01:08]} 43. e5 {[%emt 0:02:46]} Be7 {[%emt 0:00:45]} 44. f4 {[%emt 0:02:38]} 1/2-1/2

[Event "RUS-chT Premier 2019"]
[Site "Sochi"]
[Date "2019.05.07"]
[Round "6.10"]
[White "Romanov, Evgeny"]
[Black "Najer, Evgeniy"]
[Result "1/2-1/2"]
[ECO "A20"]
[WhiteElo "2573"]
[BlackElo "2674"]
[Annotator "ChessBase"]
[PlyCount "75"]
[EventDate "2019.05.01"]
[EventType "team-tourn"]
[EventCountry "RUS"]
[SourceTitle "playchess.com"]
[Source "ChessBase"]
[SourceQuality "1"]
[TimeControl "40/5400+30:1800+30"]

1. c4 {[%emt 0:00:00]} e5 {[%emt 0:00:00]} 2. d3 {[%emt 0:00:00]} Nf6 {[%emt 0:00:24]} 3. a3 {[%emt 0:00:21]} d5 {[%emt 0:06:00]} 4. cxd5 {[%emt 0:00:16]} Nxd5 {[%emt 0:00:04]} 5. Nf3 {[%emt 0:00:05]} Bd6 {[%emt 0:02:33]} 6. g3 {[%emt 0:02:36]} O-O {[%emt 0:04:02]} 7. Bg2 {[%emt 0:00:14]} c5 {[%emt 0:00:22]} 8. O-O {[%emt 0:04:25]} Nc6 {[%emt 0:01:49]} 9. Nbd2 {[%emt 0:00:45]} Kh8 {[%emt 0:05:02]} 10. Nc4 {[%emt 0:07:49]} Rb8 {[%emt 0:06:15]} 11. b4 {[%emt 0:16:43]} cxb4 {[%emt 0:01:56]} 12. Nxd6 {[%emt 0:00:23]} Qxd6 {[%emt 0:00:30]} 13. axb4 {[%emt 0:00:07]} a6 {[%emt 0:17:19]} 14. Ng5 {[%emt 0:13:08]} Ndxb4 {[%emt 0:04:42]} 15. Qb3 {[%emt 0:07:46]} Qe7 {[%emt 0:03:01]} 16. Bd2 {[%emt 0:01:54]} f6 {[%emt 0:05:10]} 17. Bxb4 {[%emt 0:08:42]} Nxb4 {[%emt 0:01:24]} 18. Nxh7 {[%emt 0:01:29]} Rd8 {[%emt 0:08:40]} 19. Rfb1 {[%emt 0:03:10]} Nc6 {[%emt 0:02:56]} 20. Bxc6 {[%emt 0:00:51]} Be6 {[%emt 0:00:27]} 21. Nf8 {[%emt 0:01:55]} Rxf8 {[%emt 0:04:18]} 22. Bd5 {[%emt 0:00:09]} Bxd5 {[%emt 0:00:25]} 23. Qxd5 {[%emt 0:00:02]} Rfd8 {[%emt 0:00:09]} 24. Qf3 {[%emt 0:01:20]} Rd6 {[%emt 0:01:50]} 25. Rb4 {[%emt 0:01:39]} Kg8 {[%emt 0:01:55]} 26. Rh4 {[%emt 0:02:03]} Rbd8 {[%emt 0:04:55]} 27. Qf5 {[%emt 0:11:16]} Rd4 {[%emt 0:06:51]} 28. Rh7 {[%emt 0:00:14]} Qd7 {[%emt 0:00:15]} 29. Qh5 {[%emt 0:00:48]} Kf8 {[%emt 0:00:02]} 30. Rc1 {[%emt 0:05:25]} a5 {[%emt 0:00:47]} 31. Rc5 {[%emt 0:04:43]} b6 {[%emt 0:03:29]} 32. Rc1 {[%emt 0:03:25]} a4 {[%emt 0:01:32]} 33. Rh8+ {[%emt 0:00:53]} Ke7 {[%emt 0:00:04]} 34. Qh7 {[%emt 0:00:15]} Kf7 {[%emt 0:01:11]} 35. Qh5+ {[%emt 0:00:32]} Ke7 {[%emt 0:01:07]} 36. Qh7 {[%emt 0:01:25]} Kf7 {[%emt 0:00:07]} 37. Qh5+ {[%emt 0:00:27]} Ke7 {[%emt 0:00:08]} 38. Qh7 {[%emt 0:00:59]} 1/2-1/2